[Event "CCT Airthings Masters Play-In 2023"]
[Site "Online"]
[Date "2023.02.03"]
[Round "2"]
[White "Oleksandr_Bortnyk"]
[Black "Iniyan, P."]
[Result "1/2-1/2"]
[ECO "D00"]
[WhiteElo "2637"]
[BlackElo "2514"]
[Annotator "TA"]
[PlyCount "146"]
[EventDate "2023.02.03"]
[EventType "swiss"]
[EventCountry "NET"]
[SourceTitle "playchess.com"]
[Source "ChessBase"]
[SourceQuality "1"]
[TimeControl "600+2"]

{[%evp 9,146,-14,-16,-16,-15,-11,0,-23,-10,-57,-47,-43,-15,-22,-14,-24,0,0,0,0,0,-54,-4,-73,11,11,17,5,27,16,35,115,156,147,166,166,620,152,148,99,202,188,195,198,173,174,404,391,335,94,103,39,42,41,77,62,111,130,110,131,288,164,163,177,164,0,54,59,68,0,68,0,1118,-43,272,184,252,-25,-25,-25,-27,-181,-172,-172,-172,-175,-172,-250,-16,-16,-16,-16,-16,-108,0,0,0,-20,-20,-28,0,-8,-8,-8,0,0,0,0,0,0,0,0,0,0,0,0,0,0,0,-8,-8,-8,-8,-8,-8,-8,0,0,0,0,0,0,0,0,0,0,0,0,0]} 1. d4 {[%emt 0:00:11]} Nf6 {[%emt 0:00:05]} 2. Nc3 {[%emt 0:00:01]} d5 {[%emt 0:00:01]} 3. Bf4 {[%emt 0:00:00]} e6 {[%emt 0:00:03]} 4. Nb5 {[%emt 0:00:02]} Na6 {[%emt 0:00:02]} 5. e3 {[%emt 0:00:01]} Be7 {[%emt 0:00:05]} 6. h3 {[%emt 0:00:01] D00: 1 d4 d5: Unusual lines.} O-O {[%emt 0:00:01]} 7. Nf3 {[%emt 0:00:01]} Bd7 {[%emt 0:00:11]} 8. Ne5 {[%emt 0:00:06]} Be8 {[%emt 0:00:03] [#]} 9. a3 $146 {[%emt 0:00:22]} (9. Be2 $11) ({Predecessor:} 9. a4 c6 10. Nc3 c5 11. Bxa6 bxa6 12. O-O Qb6 13. Rb1 a5 14. b3 Rc8 15. Ne2 {0-1 Hector,J (2524)-Blomqvist,E (2483) Vaxjo Visma GM 2013 (7)}) 9... c5 {[%emt 0:00:04] And now ...Bxb5 would win.} 10. Nc3 {[%emt 0:00:07]} Qb6 {[%emt 0:00:19]} 11. Rb1 {[%emt 0:00:12]} Rc8 {[%emt 0:00:22]} 12. Be2 {[%emt 0:00:08]} Qd8 {[%emt 0:00:46]} 13. O-O {[%emt 0:00:15]} c4 {[%emt 0:00:09]} 14. Bf3 {[%emt 0:01:05]} b5 {[%emt 0:01:04]} 15. e4 {[%emt 0:00:08]} (15. b3 $11) 15... Nc7 {[%emt 0:00:03]} (15... dxe4 $15 16. Bxe4 (16. Nxe4 Nd5 $17) 16... Nxe4 17. Nxe4 Nc7) 16. Re1 {[%emt 0:00:21]} (16. exd5 $11 {keeps the balance.} Nfxd5 17. Bd2) 16... b4 {[%emt 0:00:29]} (16... dxe4 $1 $17 17. Bxe4 (17. Nxe4 $2 Nfd5 $19) 17... Nxe4 18. Nxe4 Nd5) 17. axb4 $11 {[%emt 0:00:00]} Bxb4 {[%emt 0:00:01]} 18. Bg5 {[%emt 0:00:23] exd5 would be deadly.} h6 {[%emt 0:00:29]} 19. Bxf6 {[%emt 0:02:08][%mdl 64] Remove Defender} gxf6 {[%emt 0:00:03]} 20. Ng4 {[%emt 0:00:00][%cal Be5g4,Bg4e3,Be3f5][%mdl 32]} Bxc3 {[%emt 0:00:01]} 21. bxc3 {[%emt 0:00:07]} dxe4 {[%emt 0:00:02]} 22. Bxe4 {[%emt 0:00:50]} (22. Nxh6+ $6 Kg7 23. Rxe4 f5 24. Nxf5+ exf5 $11) 22... f5 $2 {[%emt 0:00:06] [#]} (22... Kg7 23. Qd2 Rh8) 23. Bxf5 $1 {[%emt 0:00:22][%mdl 512]} Kg7 $16 {[%emt 0:00:41] [#]} 24. Qd2 {[%emt 0:01:59] White is more active.} (24. Be4 $142 $1) 24... Rh8 {[%emt 0:00:17] [#]} (24... Qg5 $16 25. Qxg5+ hxg5) 25. Ne3 $1 $18 {[%emt 0:00:36]} exf5 {[%emt 0:00:19]} 26. Nxf5+ {[%emt 0:00:00]} (26. Nxc4 Nb5 27. Qd3 f4 $15) 26... Kf8 {[%emt 0:00:00]} 27. Ne7 $1 {[%emt 0:00:01] Hoping for d5.} (27. Nxh6 Nd5 $11) 27... Nd5 $2 {[%emt 0:01:26]} (27... Ra8 28. Qf4 Nd5) 28. Nxc8 {[%emt 0:00:02]} Qxc8 {[%emt 0:00:00]} 29. Re5 $2 {[%emt 0:00:01]} (29. Qe2 $18 Nb6 30. Qe7+ Kg7 31. Qxa7) 29... Bc6 $16 {[%emt 0:00:03]} 30. Rbe1 {[%emt 0:00:20]} (30. Rh5 $16 Kg7 31. Qe2) 30... Qd8 $14 {[%emt 0:00:05]} 31. Qe2 {[%emt 0:00:37]} Rg8 $1 {[%emt 0:00:18]} 32. g3 {[%emt 0:00:10]} (32. Qxc4 $2 Rxg2+ 33. Kf1 Qh4 $19) 32... Nf4 {[%emt 0:01:03]} (32... Nb6 $14) 33. Qxc4 $16 {[%emt 0:00:04]} Nxh3+ {[%emt 0:00:18]} 34. Kh2 {[%emt 0:00:01] Chess con chili.} Bd7 {[%emt 0:00:25]} (34... Nxf2 $16 35. Qc5+ (35. Qxc6 Qh4+ 36. gxh4 Ng4+ 37. Kg1 Nxe5+ $16) 35... Kg7) 35. Qd5 {[%emt 0:00:24]} (35. Re7 $142 {[%csl Ge7][%cal Rc4f7]} Ng5 36. Qd5 Qxe7 37. Rxe7 Kxe7 38. Qc5+ Kf6 39. Qe5+ (39. Qxa7 Nf3+ 40. Kg2 Bg4 $11) 39... Kg6 40. Qd6+ {[%mdl 64] Skewer, Double Attack} Be6 41. d5 {[%mdl 64] Pin}) 35... Qf6 $18 {[%emt 0:00:25]} 36. f4 $36 {[%emt 0:00:05][%mdl 2048] White is on the roll.} (36. Qxd7 Qxf2+ 37. Kh1 Qf3+ 38. Kh2 Qxg3+ 39. Kh1 Qg2#) 36... Qg6 {[%emt 0:00:10]} 37. R1e3 {[%emt 0:00:01]} (37. Qxd7 $2 Qxg3+ 38. Kh1 Qg2#) ({Only move:} 37. R5e3 $18 Bg4 38. Re8+ Kg7 39. Rxg8+ Kxg8 40. Re8+ Kh7 41. Qe4) 37... Qxc2+ {[%emt 0:00:13]} (37... Nxf4 $1 $11 38. Qxd7 (38. Qc5+ $2 Kg7 $19) 38... Qxc2+ 39. Re2 Nxe2 40. Qe7+ (40. Qxa7 $2 Nf4+) 40... Kg7 41. Rxe2 Qf5) 38. Re2 $14 {[%emt 0:00:00]} Qg6 {[%emt 0:00:06]} 39. R2e3 {[%emt 0:00:01]} (39. Qxd7 $2 Qxg3+ 40. Kh1 Qg1#) (39. R5e3 $14 Bg4 40. Re8+ (40. f5 Qf6 $11) 40... Kg7 41. Rxg8+ Kxg8 42. Re8+ Kh7 43. Qe4) 39... Bg4 {[%emt 0:00:34]} (39... Qc2+ $11 40. Re2 Qg6) 40. f5 {[%emt 0:00:05]} ({White should play} 40. Re8+ $14 Kg7 41. Rxg8+ Kxg8 42. Re8+ Kh7 43. Qe4) 40... Qb6 $2 {[%emt 0:00:18][%mdl 8192]} (40... Qf6 $11) 41. Qc5+ $2 {[%emt 0:00:04]} ({Stronger than} 41. Re7 Ng5 42. Qc5 (42. Rb7 Qf6 $17) 42... Kg7 43. Qxb6 axb6 $17) (41. Re8+ $1 $18 Kg7 42. Rxg8+ Kxg8 43. Re8+ Kg7 44. Qe5+ Qf6 45. Rg8+ {[%mdl 64] Skewer, Deflection} Kxg8 46. Qxf6) 41... Qxc5 $4 {[%emt 0:00:01][%mdl 8192]} (41... Kg7 $15 {stays ahead.} 42. Qxb6 axb6) 42. dxc5 {[%emt 0:00:01] White threatens f6 and mate.} Kg7 {[%emt 0:00:02] [#]} (42... Rg5 $142) 43. c6 $2 {[%emt 0:00:01]} ({White must play} 43. Re8 $1 $18) 43... Rc8 $11 {[%emt 0:00:01]} 44. Rc5 {[%emt 0:00:01]} Ng5 {[%emt 0:00:01] Repels Re4. Black wants to play ...Kf6.} 45. Kg2 $2 {[%emt 0:00:01] [#]} (45. c7 $11 {and White has nothing to worry.}) 45... Kf6 $1 $19 {[%emt 0:00:02]} 46. Re1 {[%emt 0:00:05]} Bf3+ {[%emt 0:00:02]} ({Don't do} 46... Bxf5 47. Rf1 $16) 47. Kh2 {[%emt 0:00:01]} Bxc6 {[%emt 0:00:01] Strongly threatening ...Nf3+.} 48. Ra1 {[%emt 0:00:01]} (48. Re3 {was called for.}) 48... Bd7 $2 {[%emt 0:00:07]} (48... Nf3+ $19 49. Kh3 Ne5) 49. Rxc8 $11 {[%emt 0:00:02]} Bxc8 {[%emt 0:00:00]} 50. g4 {[%emt 0:00:01]} a6 {[%emt 0:00:01][%cal Ba7a6,Ba6a5][%mdl 32]} 51. Ra4 {[%emt 0:00:02]} (51. c4 $11 {remains equal.}) 51... Nf3+ {[%emt 0:00:03]} ({Better is} 51... Bb7 $17 52. Rc4 Bd5) 52. Kg3 {[%emt 0:00:01]} Ne5 {[%emt 0:00:01]} 53. Kh4 {[%emt 0:00:01]} (53. Kf4 $5 {[%cal Ra4d4]}) 53... Nc6 {[%emt 0:00:06]} 54. Kh5 {[%emt 0:00:01]} a5 {[%emt 0:00:01]} 55. Kxh6 {[%emt 0:00:02] The position is equal.} Ba6 {[%emt 0:00:02]} 56. c4 {[%emt 0:00:01]} Bc8 {[%emt 0:00:02]} 57. Ra1 {[%emt 0:00:05]} Ne5 {[%emt 0:00:02][%csl LRc4,LRg4]} 58. g5+ {[%emt 0:00:05]} Kxf5 {[%emt 0:00:03]} 59. Rxa5 {[%emt 0:00:00]} Be6 {[%emt 0:00:02]} 60. c5 {[%emt 0:00:02] c6 is the strong threat.} Ke4 {[%emt 0:00:02]} 61. Ra6 {[%emt 0:00:02]} Kd5 {[%emt 0:00:01]} 62. Ra5 {[%emt 0:00:03]} Nc6 {[%emt 0:00:01]} 63. Ra1 {[%emt 0:00:01]} Bf5 {[%emt 0:00:02]} 64. Rc1 {[%emt 0:00:05]} Bg6 {[%emt 0:00:02]} 65. Kg7 {[%emt 0:00:00]} Nd4 {[%emt 0:00:01]} 66. Kf6 {[%emt 0:00:03]} Kc6 {[%emt 0:00:03]} 67. Ra1 {[%emt 0:00:03]} Ne2 {[%emt 0:00:07]} 68. Ra7 {[%emt 0:00:02]} Kxc5 {[%emt 0:00:03]} 69. Rxf7 {[%emt 0:00:02]} Bxf7 {[%emt 0:00:00]} 70. Kxf7 {[%emt 0:00:00]} Nf4 {[%emt 0:00:01]} 71. Kf6 {[%emt 0:00:00]} (71. g6 $5 {[%cal Rg6g7]} Nh5 72. Kg8 $11) 71... Kd4 {[%emt 0:00:01]} 72. Kf5 {[%emt 0:00:02]} Ke3 {[%emt 0:00:01]} 73. g6 {[%emt 0:00:02]} Nxg6 {[%emt 0:00:00][%mdl 64] Deflection. An interesting game.   Weighted Error Value: White=0.63/Black=0.45} 1/2-1/2

[Event "CCT Airthings Masters Play-In 2023"]
[Site "Online"]
[Date "2023.02.03"]
[Round "2"]
[White "VincentKeymer"]
[Black "Rakhmanov_Aleksandr"]
[Result "1/2-1/2"]
[ECO "D34"]
[WhiteElo "2636"]
[BlackElo "2484"]
[Annotator "TA"]
[PlyCount "153"]
[EventDate "2023.02.03"]
[EventType "swiss"]
[EventCountry "NET"]
[SourceTitle "playchess.com"]
[Source "ChessBase"]
[SourceQuality "1"]
[TimeControl "600+2"]

{[%evp 23,153,35,39,30,79,60,45,52,105,93,170,162,161,147,177,137,139,117,120,114,116,116,112,86,86,86,86,82,86,59,93,93,93,86,106,106,106,106,108,59,59,59,59,43,44,0,0,0,0,0,6,6,6,6,6,0,0,0,0,0,0,0,0,0,0,0,0,0,0,0,0,0,0,-183,0,-46,-46,-46,-46,-46,0,0,0,0,0,-953,-953,-945,-937,-1521,-1483,-639,-379,-2367,-1992,-1907,-1734,-1656,-1568,-5065,-10974,-8175,-5575,-29970,-4943,-4618,-4604,-4304,-2081,-1036,-8,-8,0,0,0,0,0,0,0,0,0,0,0,0,0,0,0,0,0,0,0,0]} 1. Nf3 {[%emt 0:00:03]} d5 {[%emt 0:00:07]} 2. e3 {[%emt 0:00:01]} e6 {[%emt 0:00:05]} 3. c4 {[%emt 0:00:01]} Nf6 {[%emt 0:00:07]} 4. Nc3 {[%emt 0:00:01]} a6 {[%emt 0:00:01]} 5. b3 {[%emt 0:00:07]} c5 {[%emt 0:00:03]} 6. cxd5 {[%emt 0:00:03]} exd5 {[%emt 0:00:11]} 7. g3 {[%emt 0:00:01]} Nc6 {[%emt 0:00:02]} 8. Bg2 {[%emt 0:00:01]} Be7 {[%emt 0:00:11]} 9. O-O {[%emt 0:00:03]} O-O {[%emt 0:00:01]} 10. d4 {[%emt 0:00:05]} Bg4 {[%emt 0:00:05]} 11. dxc5 {[%emt 0:00:12]} Bxc5 {[%emt 0:00:02]} 12. Bb2 {[%emt 0:00:27]} Re8 {[%emt 0:00:03]} 13. h3 {[%emt 0:00:14] D34: Tarrasch Defence: 6 g3 Nf6 7 Bg2 Be7.} Bh5 {[%emt 0:00:19]} (13... Be6 $11 {is more appropriate.}) 14. Ne2 $16 {[%emt 0:00:25] [#]} Bxf3 $146 {[%emt 0:01:12]} ({Predecessor:} 14... Ne4 15. Nf4 Bxf3 16. Qxf3 d4 17. Rad1 Ng5 18. Qe2 Qa5 19. Bxc6 bxc6 20. Bxd4 Bd6 {1-0 Haast,M (2356)-Adrian,C (2267) Metz 4th 2018 (7)}) 15. Bxf3 {[%emt 0:00:04] White is slightly better.} Ne5 {[%emt 0:00:01]} (15... Qe7 $14) 16. Bg2 {[%emt 0:00:08] A strong pair of Bishops.} Qb6 {[%emt 0:00:03]} (16... Qe7 $16) 17. Rc1 {[%emt 0:00:42]} (17. Bxd5 $2 Rad8 18. e4 Nxe4 19. Bxe4 Rxd1 20. Raxd1 Ng4 21. hxg4 Rxe4 $19) 17... Rad8 {[%emt 0:00:23]} 18. Qc2 {[%emt 0:00:32] Inhibits Ne4.} Ned7 {[%emt 0:04:41]} 19. Bxf6 {[%emt 0:00:57]} Qxf6 {[%emt 0:00:03]} 20. Bxd5 {[%emt 0:00:01]} b6 {[%emt 0:00:17]} 21. Nf4 {[%emt 0:00:30]} Ne5 {[%emt 0:00:11]} 22. Rfd1 {[%emt 0:00:37]} Ng6 {[%emt 0:00:10]} 23. Qc4 {[%emt 0:01:02]} Nxf4 {[%emt 0:00:08]} 24. Qxf4 {[%emt 0:00:11]} Qxf4 {[%emt 0:00:07]} 25. gxf4 {[%emt 0:00:00]} a5 {[%emt 0:00:15]} 26. Kg2 {[%emt 0:00:12]} g6 {[%emt 0:00:04]} 27. Bc6 {[%emt 0:00:17]} Rf8 {[%emt 0:00:02]} 28. Bd7 {[%emt 0:00:04] White is more active.} f5 {[%emt 0:00:10]} 29. Rd5 {[%emt 0:00:13]} Kg7 {[%emt 0:00:20]} 30. Rcd1 {[%emt 0:00:01]} Rf6 {[%emt 0:00:03]} 31. R1d3 {[%emt 0:00:07]} (31. h4 $16) 31... Kf8 $14 {[%emt 0:00:05]} 32. h4 {[%emt 0:00:58]} Ke7 {[%emt 0:00:13]} 33. Re5+ {[%emt 0:00:25]} Kf8 {[%emt 0:00:02]} 34. Bxf5 {[%emt 0:00:02][%mdl 64] Discovered Attack} Rfd6 {[%emt 0:00:12]} 35. Rxd6 {[%emt 0:00:35]} Bxd6 $11 {[%emt 0:00:00][%mdl 4096] Endgame KRB-KRB} 36. Rb5 {[%emt 0:00:12]} Bc5 {[%emt 0:00:41]} 37. Be6 {[%emt 0:00:26]} Rd2 {[%emt 0:00:08][%csl LRa2,LRe3]} 38. Kf3 {[%emt 0:00:02]} Rxa2 {[%emt 0:00:12]} 39. f5 {[%emt 0:00:02]} Rd2 {[%emt 0:00:07]} 40. fxg6 {[%emt 0:00:13]} hxg6 {[%emt 0:00:00]} 41. Bg4 {[%emt 0:00:01]} Ke7 {[%emt 0:00:03]} 42. h5 {[%emt 0:00:01]} gxh5 {[%emt 0:00:03]} 43. Bxh5 {[%emt 0:00:01]} Kd7 {[%emt 0:00:03]} 44. Bf7 {[%emt 0:00:10]} Kc6 {[%emt 0:00:06]} 45. Be8+ {[%emt 0:00:01]} Kd6 {[%emt 0:00:01]} 46. Kg3 {[%emt 0:00:05]} Rd1 {[%emt 0:00:02]} 47. Bh5 {[%emt 0:00:12]} Rg1+ {[%emt 0:00:02]} 48. Kf4 $2 {[%emt 0:00:04] [#]} (48. Kh2 $1 $11 {and White has nothing to worry.} Rg5 49. Be2) 48... Rf1 $2 {[%emt 0:00:01]} ({Better is} 48... Rg2 $1 $19 49. Bg4 Rxf2+ 50. Kg3 Rf8) 49. f3 {[%emt 0:00:08]} (49. Kf3 $11) 49... Rh1 $15 {[%emt 0:00:03][%mdl 1024] Black has compensation.} 50. Bg6 {[%emt 0:00:08]} Rh6 {[%emt 0:00:04]} 51. Bd3 {[%emt 0:00:16]} Kc6 {[%emt 0:00:03]} (51... Rh8 $15) 52. e4 $11 {[%emt 0:00:06]} Rd6 {[%emt 0:00:01]} 53. Bc4 {[%emt 0:00:05]} Rd4 {[%emt 0:00:01][%cal Oa5a4] ...a4! would be deadly.} 54. Ke5 $2 {[%emt 0:00:05][%mdl 8192] [#]} (54. Be2 $11) 54... a4 $1 $19 {[%emt 0:00:04][%mdl 576] Deflection} 55. bxa4 {[%emt 0:00:09]} Rxc4 {[%emt 0:00:01] KRB-KR} 56. f4 {[%emt 0:00:01]} Rxa4 {[%emt 0:00:02]} 57. Rb1 {[%emt 0:00:01]} Ra8 {[%emt 0:00:01] Hoping for ...Bd6+.} 58. Rc1 $2 {[%emt 0:00:05]} (58. f5) 58... Re8+ {[%emt 0:00:01]} 59. Kf5 {[%emt 0:00:00]} Rf8+ {[%emt 0:00:01]} 60. Kg5 {[%emt 0:00:01]} b5 {[%emt 0:00:01][%cal Bb6b5,Bb5b4,Bb4b3][%mdl 32]} 61. e5 {[%emt 0:00:01]} b4 {[%emt 0:00:00]} 62. f5 {[%emt 0:00:00]} Kd5 {[%emt 0:00:01]} 63. Kf4 {[%emt 0:00:05] Against Be3+} Rh8 {[%emt 0:00:02]} (63... b3 $142 64. Rb1 Rb8 65. Rh1 Bd4 66. e6 b2 67. Rb1 Rc8 68. e7 Re8 69. f6 Bxf6 70. Kf5 Bd4 71. Kg5 Rxe7 72. Kg4 Rg7+ 73. Kf3 Rg1 74. Rxb2 Bxb2 75. Ke3 Be5 76. Kd2 Rg3 77. Kd1 Bf4 78. Ke2 Ke4 79. Ke1 Kf3 80. Kd1 Rg2 81. Ke1 Rg1#) 64. Rd1+ {[%emt 0:00:01]} Bd4 {[%emt 0:00:01]} 65. f6 {[%emt 0:00:01]} b3 {[%emt 0:00:02]} 66. f7 {[%emt 0:00:02] [#]} Rf8 $2 {[%emt 0:00:02]} ({Black should try} 66... b2 $1 $19 {( -> ...Rf8)} 67. Kf5 Kc6) 67. e6 $1 $11 {[%emt 0:00:01][%mdl 64] Deflection. The position is equal.} Kxe6 {[%emt 0:00:02]} (67... b2 {is more complex.} 68. Kf5 Kc4 69. Rb1 Kb3) 68. Rxd4 {[%emt 0:00:00]} Rxf7+ {[%emt 0:00:03] KR-KR} 69. Ke3 {[%emt 0:00:01]} Rb7 {[%emt 0:00:03]} 70. Rd1 {[%emt 0:00:01]} Ke5 {[%emt 0:00:05]} (70... b2 $5 71. Rb1 $8 Kd5 $11) 71. Rb1 {[%emt 0:00:03]} Rh7 {[%emt 0:00:01]} 72. Kd3 {[%emt 0:00:02]} Rh3+ {[%emt 0:00:04]} 73. Kc4 {[%emt 0:00:01]} Rh4+ {[%emt 0:00:04]} 74. Kxb3 {[%emt 0:00:01]} Re4 {[%emt 0:00:01]} 75. Rc1 {[%emt 0:00:01]} Rd4 {[%emt 0:00:01]} 76. Rc4 {[%emt 0:00:01]} Rxc4 {[%emt 0:00:01]} 77. Kxc4 {[%emt 0:00:00] And White is the lucky defender.   Weighted Error Value: White=0.50/Black=0.23 (precise)} 1/2-1/2

[Event "CCT Airthings Masters Play-In 2023"]
[Site "Online"]
[Date "2023.02.03"]
[Round "2"]
[White "Durarbayli, Vasif"]
[Black "SharapovEvgeny"]
[Result "1-0"]
[ECO "B63"]
[WhiteElo "2635"]
[BlackElo "2130"]
[Annotator "TA"]
[PlyCount "103"]
[EventDate "2023.02.03"]
[EventType "swiss"]
[EventCountry "NET"]
[SourceTitle "playchess.com"]
[Source "ChessBase"]
[SourceQuality "1"]
[TimeControl "600+2"]

{[%evp 19,103,9,1,0,-7,-23,-14,-25,3,12,18,16,19,0,-2,-36,0,-31,-33,-45,0,-54,80,87,105,112,106,93,99,43,92,54,78,48,50,55,38,30,17,11,25,7,7,7,7,17,8,8,8,8,8,-8,-8,-8,0,0,0,0,8,8,8,0,5,0,0,0,0,0,70,70,602,588,560,554,1402,1402,2016,1477,1271,691,6829,9773,29979,29980,29980,29981]} 1. e4 {[%emt 0:00:04]} c5 {[%emt 0:00:04]} 2. Nf3 {[%emt 0:00:03]} d6 {[%emt 0:00:02]} 3. d4 {[%emt 0:00:00]} cxd4 {[%emt 0:00:01]} 4. Nxd4 {[%emt 0:00:00]} Nf6 {[%emt 0:00:01]} 5. Nc3 {[%emt 0:00:01]} Nc6 {[%emt 0:00:02]} 6. Bg5 {[%emt 0:00:02]} e6 {[%emt 0:00:01]} 7. Qd2 {[%emt 0:00:02]} Be7 {[%emt 0:00:01]} 8. O-O-O {[%emt 0:00:02]} O-O {[%emt 0:00:01]} 9. Nb3 {[%emt 0:00:10]} Qb6 {[%emt 0:00:05]} 10. f3 {[%emt 0:00:10]} Rd8 {[%emt 0:00:02]} 11. g4 {[%emt 0:00:15] B63: Sicilian: Richter-Rauzer: 7...Be7 and unusual Black 7th moves.} d5 {[%emt 0:00:13] And now ...dxe4 would win.} 12. exd5 {[%emt 0:00:12]} (12. Be3 $5 {[%cal Re3b6]} Qc7 13. Qg2 $11) 12... Nxd5 {[%emt 0:00:10]} 13. Bxe7 {[%emt 0:00:02] The position is equal.} Ndxe7 {[%emt 0:00:28]} 14. Bd3 {[%emt 0:00:03]} e5 {[%emt 0:00:15] [#]} (14... Bd7 {seems wilder.} 15. Qg5 a5 16. Be4 a4) 15. Kb1 $146 {[%emt 0:01:02]} ({Predecessor:} 15. Qe2 Be6 16. Na4 Qc7 17. Nac5 Bxb3 18. Nxb3 a5 19. Qe4 Ng6 20. Bb5 Na7 21. Rxd8+ Rxd8 {½-½ Negi,P (2316)-Kosintseva,N (2460) Moscow Aeroflot op-B 2005 (3)}) 15... Be6 {[%emt 0:00:07]} 16. Na4 {[%emt 0:00:01]} Qc7 {[%emt 0:00:09]} 17. Nac5 {[%emt 0:00:05]} Bxb3 {[%emt 0:00:22]} (17... Bd5 $5 {[%cal Rd5f3]} 18. Qe3 Nb4 $15) 18. axb3 {[%emt 0:00:20]} Nd4 {[%emt 0:00:19][%csl LRc5,LRf3]} 19. Ne4 {[%emt 0:00:01]} (19. Qb4 $2 a5 20. Qa3 b5 $19) 19... a5 {[%emt 0:00:28]} (19... Nxf3 20. Qf2 Nd4 21. Ng5 $14) (19... Nd5 {is more complex.} 20. Nc3 Nb4 21. Qe3 Rac8) 20. Qc3 {[%emt 0:02:49]} (20. Nc3 $1 $11) 20... Qxc3 {[%emt 0:00:22]} (20... Qd7 $15 {stays ahead.} 21. Qc5 b6 22. Qxe5 a4) 21. bxc3 $16 {[%emt 0:00:03]} Ndc6 {[%emt 0:00:55]} 22. Bc4 {[%emt 0:00:10]} Rxd1+ {[%emt 0:00:36]} 23. Rxd1 {[%emt 0:00:03]} Rd8 {[%emt 0:00:01]} 24. Re1 {[%emt 0:00:53] White is more active.} ({White should play} 24. Rxd8+ $16 Nxd8 25. Kb2) 24... h6 {[%emt 0:00:22]} (24... b6 $14 {is more appropriate.}) 25. h4 {[%emt 0:00:08]} Kf8 {[%emt 0:00:31]} 26. h5 {[%emt 0:00:04]} (26. Nc5 $5 {[%cal Rc5b7]}) 26... b6 {[%emt 0:00:36]} 27. g5 {[%emt 0:00:13]} Nf5 {[%emt 0:00:03]} 28. Bb5 {[%emt 0:00:17]} Nce7 {[%emt 0:00:19]} 29. Kb2 {[%emt 0:00:07]} Nd6 {[%emt 0:00:48]} 30. Rd1 {[%emt 0:00:40]} (30. gxh6 $5 gxh6 31. Bd3 $11 (31. Nxd6 Rxd6 32. b4 axb4 $11)) 30... Nc4+ {[%emt 0:00:06][%mdl 64] [#] Discovered Attack} 31. Kc1 $1 {[%emt 0:00:06][%cal Rd1d8]} (31. bxc4 $2 {loses.} Rxd1 32. gxh6 gxh6 $19) 31... Rxd1+ {[%emt 0:00:02]} 32. Kxd1 $11 {[%emt 0:00:00][%mdl 4096] Endgame KBN-KNN} Ne3+ {[%emt 0:00:13]} 33. Kd2 {[%emt 0:00:47] aiming for gxh6.} N3d5 $1 {[%emt 0:00:07]} 34. gxh6 {[%emt 0:00:10]} gxh6 {[%emt 0:00:01]} 35. Bd7 {[%emt 0:00:03]} Nf4 {[%emt 0:00:16]} 36. Ng3 {[%emt 0:00:05]} Ng8 {[%emt 0:00:14]} 37. Bg4 {[%emt 0:00:11]} Nf6 {[%emt 0:00:21]} 38. c4 {[%emt 0:00:06]} Ke7 {[%emt 0:01:25]} 39. Nf5+ {[%emt 0:00:05]} Kf8 {[%emt 0:00:01]} 40. Ng3 {[%emt 0:00:15]} Ke7 {[%emt 0:00:01]} 41. Ke3 {[%emt 0:00:14]} Kd8 {[%emt 0:00:19]} 42. c3 {[%emt 0:00:12]} Kc7 {[%emt 0:00:03]} 43. Nf5 {[%emt 0:00:01]} N4xh5 {[%emt 0:00:09]} (43... Ng8 $11) 44. Nxh6 $14 {[%emt 0:00:04]} Nxg4+ {[%emt 0:00:10][%mdl 8192] This move loses the game for Black.} (44... Ng7 $14) 45. fxg4 $11 {[%emt 0:00:01][%cal Bf3g4,Bg4g5,Bg5g6,Bg6g7][%mdl 32] KN-KN} Nf6 {[%emt 0:00:05]} 46. g5 {[%emt 0:00:00]} ({Stronger than} 46. Nxf7 Nxg4+ 47. Ke4 Nf2+ 48. Ke3 (48. Kxe5 Nd3+ 49. Kd5 Nc1 $11) 48... Ng4+ 49. Ke2 Kc6 $11) 46... Nd7 {[%emt 0:00:06]} 47. Nxf7 {[%emt 0:00:01]} Nc5 {[%emt 0:00:07]} 48. g6 {[%emt 0:00:02] [#] Threatening mate with g7.} Ne6 {[%emt 0:00:03]} 49. Ke4 {[%emt 0:00:09]} Kd7 {[%emt 0:00:02]} 50. Kxe5 {[%emt 0:00:11]} Ke7 {[%emt 0:00:01]} 51. Nh6 {[%emt 0:00:01]} Nc5 {[%emt 0:00:03]} 52. g7 {[%emt 0:00:02] Weighted Error Value: White=0.25 (precise) /Black=0.42} 1-0